[Event "*** Titled Tuesday 3|2 Blitz (Early)"]
[Site "Chess.com"]
[Date "2016.12.06"]
[Round "1"]
[White "Ind1anStar"]
[Black "Apocalyps999"]
[Result "0-1"]
[WhiteElo "2140"]
[BlackElo "2429"]
[TimeControl "180+2"]
[EndTime "11:06:43 PST"]
[Termination "Apocalyps999 won by resignation"]

1. e4 {[%clk 0:03:02]} 1... e5 {[%clk 0:03:00.7]} 2. Nf3 {[%clk 0:03:02.8]} 2...
Nc6 {[%clk 0:03:01.8]} 3. Bc4 {[%clk 0:03:03.8]} 3... Bc5 {[%clk 0:03:01.2]} 4.
d3 {[%clk 0:03:05]} 4... Nf6 {[%clk 0:03:02.1]} 5. c3 {[%clk 0:03:05.9]} 5...
O-O {[%clk 0:03:01.8]} 6. Nbd2 {[%clk 0:03:06]} 6... a6 {[%clk 0:02:57.9]} 7.
Bb3 {[%clk 0:03:07.1]} 7... d6 {[%clk 0:02:59]} 8. Nf1 {[%clk 0:03:06.8]} 8...
Ng4 {[%clk 0:02:51.7]} 9. d4 {[%clk 0:03:06.4]} 9... exd4 {[%clk 0:02:51.6]} 10.
cxd4 {[%clk 0:03:07.5]} 10... Bb6 {[%clk 0:02:46.6]} 11. Ng3 {[%clk 0:02:49.8]}
11... Qf6 {[%clk 0:02:45.5]} 12. Bg5 {[%clk 0:02:38.7]} 12... Ba5+ {[%clk
0:02:43.1]} 13. Bd2 {[%clk 0:02:31.9]} 13... Bb6 {[%clk 0:02:28.5]} 14. Bc3
{[%clk 0:02:28.5]} 14... Be6 {[%clk 0:02:19.5]} 15. h3 {[%clk 0:02:25.6]} 15...
Bxb3 {[%clk 0:02:19]} 16. axb3 {[%clk 0:02:26.6]} 16... Nh6 {[%clk 0:02:16.5]}
17. O-O {[%clk 0:02:16.6]} 17... Rae8 {[%clk 0:02:16.4]} 18. Nh5 {[%clk
0:02:13.2]} 18... Qd8 {[%clk 0:02:15.7]} 19. d5 {[%clk 0:02:09.7]} 19... Ne5
{[%clk 0:02:13.6]} 20. Nxe5 {[%clk 0:02:07.5]} 20... dxe5 {[%clk 0:02:15.5]} 21.
Bd2 {[%clk 0:02:08.4]} 21... Qd6 {[%clk 0:02:13.6]} 22. Kh1 {[%clk 0:02:00.6]}
22... f5 {[%clk 0:02:13.7]} 23. f4 {[%clk 0:01:53.8]} 23... fxe4 {[%clk
0:02:11.1]} 24. fxe5 {[%clk 0:01:54.8]} 24... Rxf1+ {[%clk 0:01:59.9]} 25. Qxf1
{[%clk 0:01:55.7]} 25... Qxe5 {[%clk 0:02:01]} 26. g4 {[%clk 0:01:38.4]} 26...
e3 {[%clk 0:01:59.7]} 27. Bc3 {[%clk 0:01:34.4]} 27... Qxd5+ {[%clk 0:01:59.1]}
28. Kh2 {[%clk 0:01:35.2]} 28... Rf8 {[%clk 0:01:52.6]} 29. Bxg7 {[%clk
0:01:30.5]} 29... Rxf1 {[%clk 0:01:48.2]} 30. Rxf1 {[%clk 0:01:32]} 30... Qd2+
{[%clk 0:01:43.1]} 31. Kh1 {[%clk 0:01:31.4]} 31... Nf7 {[%clk 0:01:41.7]} 32.
Bc3 {[%clk 0:01:27.8]} 32... Qd5+ {[%clk 0:01:41.4]} 33. Kh2 {[%clk 0:01:28.2]}
33... Qd6+ {[%clk 0:01:42.6]} 34. Kh1 {[%clk 0:01:29.4]} 34... e2 {[%clk
0:01:42.8]} 35. Nf6+ {[%clk 0:01:29]} 35... Kf8 {[%clk 0:01:38.7]} 36. Re1
{[%clk 0:01:26.1]} 36... Bf2 {[%clk 0:01:34.1]} 37. Nxh7+ {[%clk 0:01:14.8]}
37... Kg8 {[%clk 0:01:23.7]} 38. Nf6+ {[%clk 0:01:10.1]} 38... Qxf6 {[%clk
0:01:24.7]} 39. Rxe2 {[%clk 0:01:10.8]} 39... Qf3+ {[%clk 0:01:23.1]} 0-1

[Event "*** Titled Tuesday 3|2 Blitz (Early)"]
[Site "Chess.com"]
[Date "2016.12.06"]
[Round "1"]
[White "Saitama_Hero"]
[Black "Divertissement"]
[Result "0-1"]
[WhiteElo "2134"]
[BlackElo "2454"]
[TimeControl "180+2"]
[EndTime "11:06:45 PST"]
[Termination "Divertissement won by resignation"]

1. d4 {[%clk 0:03:02]} 1... Nf6 {[%clk 0:03:00.2]} 2. Nf3 {[%clk 0:03:02.6]}
2... g6 {[%clk 0:03:01.2]} 3. Bg5 {[%clk 0:03:04.1]} 3... Bg7 {[%clk 0:03:01.9]}
4. Nbd2 {[%clk 0:03:02.9]} 4... d5 {[%clk 0:03:02.5]} 5. Bxf6 {[%clk 0:03:02.2]}
5... Bxf6 {[%clk 0:03:02.6]} 6. e4 {[%clk 0:03:03.7]} 6... O-O {[%clk
0:02:49.9]} 7. Bd3 {[%clk 0:02:59.1]} 7... c5 {[%clk 0:02:41.3]} 8. e5 {[%clk
0:02:57.5]} 8... Bg7 {[%clk 0:02:41.7]} 9. c3 {[%clk 0:02:59]} 9... Nc6 {[%clk
0:02:41.2]} 10. h3 {[%clk 0:02:47.1]} 10... Qb6 {[%clk 0:02:33.6]} 11. Qb3
{[%clk 0:02:33.2]} 11... c4 {[%clk 0:02:30.7]} 12. Qxb6 {[%clk 0:02:32.3]} 12...
axb6 {[%clk 0:02:32.6]} 13. Bc2 {[%clk 0:02:23.4]} 13... b5 {[%clk 0:02:33.7]}
14. O-O {[%clk 0:02:23.2]} 14... b4 {[%clk 0:02:33.9]} 15. Rfb1 {[%clk
0:01:50.9]} 15... b5 {[%clk 0:02:31.7]} 16. a3 {[%clk 0:01:51]} 16... b3 {[%clk
0:02:01.2]} 17. Bd1 {[%clk 0:01:50.5]} 17... f6 {[%clk 0:02:00.4]} 18. exf6
{[%clk 0:01:47.1]} 18... Bxf6 {[%clk 0:01:56.5]} 19. Be2 {[%clk 0:01:48.2]}
19... e5 {[%clk 0:01:54.2]} 20. dxe5 {[%clk 0:01:48]} 20... Nxe5 {[%clk
0:01:55.3]} 21. Nxe5 {[%clk 0:01:46.4]} 21... Bxe5 {[%clk 0:01:57.2]} 22. Bf3
{[%clk 0:01:42.9]} 22... Bb7 {[%clk 0:01:55.8]} 23. Re1 {[%clk 0:01:40.3]} 23...
Bf4 {[%clk 0:01:48.4]} 24. Nf1 {[%clk 0:01:38.1]} 24... Rfe8 {[%clk 0:01:45.4]}
25. g3 {[%clk 0:01:33.2]} 25... Bh6 {[%clk 0:01:41.4]} 26. Rad1 {[%clk
0:01:27.8]} 26... Rxe1 {[%clk 0:01:29.2]} 27. Rxe1 {[%clk 0:01:29.7]} 27... Kf7
{[%clk 0:01:27.5]} 28. Ne3 {[%clk 0:01:26.6]} 28... Rd8 {[%clk 0:01:22.8]} 29.
Ng4 {[%clk 0:01:22.7]} 29... Bg7 {[%clk 0:01:18.3]} 30. Rd1 {[%clk 0:01:22]}
30... Ba8 {[%clk 0:00:58.3]} 31. Ne3 {[%clk 0:01:21.1]} 31... d4 {[%clk
0:00:43.6]} 32. cxd4 {[%clk 0:01:16.8]} 32... Bxf3 {[%clk 0:00:43.2]} 0-1

[Event "*** Titled Tuesday 3|2 Blitz (Early)"]
[Site "Chess.com"]
[Date "2016.12.06"]
[Round "1"]
[White "pedromartinez91"]
[Black "BillieKimbah"]
[Result "1-0"]
[WhiteElo "2326"]
[BlackElo "2583"]
[TimeControl "180+2"]
[EndTime "11:06:50 PST"]
[Termination "pedromartinez91 won by resignation"]

1. e4 {[%clk 0:03:02]} 1... e5 {[%clk 0:03:00.1]} 2. Nf3 {[%clk 0:03:02.6]} 2...
Nc6 {[%clk 0:03:01]} 3. d4 {[%clk 0:03:03.6]} 3... exd4 {[%clk 0:03:01.6]} 4.
Nxd4 {[%clk 0:03:05.1]} 4... Bc5 {[%clk 0:03:03.1]} 5. Nxc6 {[%clk 0:03:02]}
5... Qf6 {[%clk 0:03:03.1]} 6. Qf3 {[%clk 0:03:03.1]} 6... dxc6 {[%clk
0:03:00.7]} 7. Nc3 {[%clk 0:03:02.1]} 7... Be6 {[%clk 0:02:55.8]} 8. Qg3 {[%clk
0:02:59.1]} 8... O-O-O {[%clk 0:02:46.9]} 9. Bd3 {[%clk 0:02:35.5]} 9... Qg6
{[%clk 0:02:36.5]} 10. Qxg6 {[%clk 0:02:27.8]} 10... hxg6 {[%clk 0:02:37.1]} 11.
Ke2 {[%clk 0:02:29.3]} 11... Nf6 {[%clk 0:02:34.9]} 12. f3 {[%clk 0:02:29.2]}
12... Nd7 {[%clk 0:02:31]} 13. Be3 {[%clk 0:02:30.1]} 13... Bd6 {[%clk
0:02:28.9]} 14. h3 {[%clk 0:02:29.4]} 14... Ne5 {[%clk 0:02:26.2]} 15. Rad1
{[%clk 0:02:21.8]} 15... c5 {[%clk 0:02:18.6]} 16. f4 {[%clk 0:02:14]} 16... c4
{[%clk 0:02:11.1]} 17. fxe5 {[%clk 0:02:13.9]} 17... Bxe5 {[%clk 0:02:10.3]} 18.
Kf3 {[%clk 0:01:54.4]} 18... cxd3 {[%clk 0:02:10.6]} 19. cxd3 {[%clk 0:01:55]}
19... b6 {[%clk 0:01:54.5]} 20. d4 {[%clk 0:01:53.8]} 20... Bf6 {[%clk
0:01:55.1]} 21. e5 {[%clk 0:01:44]} 21... Be7 {[%clk 0:01:55.7]} 22. d5 {[%clk
0:01:41.7]} 22... Bd7 {[%clk 0:01:55]} 23. Rc1 {[%clk 0:01:30.4]} 23... Kb7
{[%clk 0:01:55.4]} 24. Rhd1 {[%clk 0:01:29.2]} 24... Rh5 {[%clk 0:01:51]} 25.
Bf4 {[%clk 0:01:26.8]} 25... g5 {[%clk 0:01:49.6]} 26. Bg3 {[%clk 0:01:26.5]}
26... g4+ {[%clk 0:01:41.4]} 27. hxg4 {[%clk 0:01:25.8]} 27... Rg5 {[%clk
0:01:42.5]} 28. Rd4 {[%clk 0:01:23.7]} 28... Rg6 {[%clk 0:01:40.9]} 29. b4
{[%clk 0:01:09.3]} 29... f6 {[%clk 0:01:27.4]} 30. e6 {[%clk 0:01:08.5]} 30...
Bxe6 {[%clk 0:01:28]} 31. Nb5 {[%clk 0:01:03.8]} 31... Bxd5+ {[%clk 0:01:23.7]}
32. Rxd5 {[%clk 0:01:04.4]} 32... Rxd5 {[%clk 0:01:24.4]} 33. Rxc7+ {[%clk
0:01:04.9]} 33... Ka6 {[%clk 0:01:19.5]} 34. a4 {[%clk 0:01:05.1]} 34... Rxb5
{[%clk 0:01:19.6]} 35. axb5+ {[%clk 0:01:05.8]} 35... Kxb5 {[%clk 0:01:21.1]}
36. Rxe7 {[%clk 0:01:07]} 36... a6 {[%clk 0:01:21]} 37. Re6 {[%clk 0:01:06.8]}
37... Rg5 {[%clk 0:01:20.9]} 38. Bc7 {[%clk 0:01:06.8]} 1-0

[Event "*** Titled Tuesday 3|2 Blitz (Early)"]
[Site "Chess.com"]
[Date "2016.12.06"]
[Round "1"]
[White "viktorskliarov"]
[Black "Hieronymus00"]
[Result "1-0"]
[WhiteElo "2442"]
[BlackElo "2111"]
[TimeControl "180+2"]
[EndTime "11:06:58 PST"]
[Termination "viktorskliarov won on time"]

1. e4 {[%clk 0:03:02]} 1... e5 {[%clk 0:02:59.5]} 2. Nc3 {[%clk 0:03:02.6]} 2...
Nc6 {[%clk 0:03:00.5]} 3. Bc4 {[%clk 0:03:03.1]} 3... Nf6 {[%clk 0:02:57.3]} 4.
d3 {[%clk 0:03:03.8]} 4... Bc5 {[%clk 0:02:55.9]} 5. a3 {[%clk 0:03:03.6]} 5...
a6 {[%clk 0:02:47.7]} 6. h3 {[%clk 0:03:04.1]} 6... d6 {[%clk 0:02:48.3]} 7.
Nge2 {[%clk 0:03:00.5]} 7... O-O {[%clk 0:02:43.2]} 8. Ng3 {[%clk 0:02:58.5]}
8... Nd4 {[%clk 0:02:41.9]} 9. O-O {[%clk 0:02:58.2]} 9... c6 {[%clk 0:02:40.8]}
10. b4 {[%clk 0:02:50.4]} 10... Ba7 {[%clk 0:02:31.2]} 11. Nce2 {[%clk 0:02:51]}
11... d5 {[%clk 0:02:24.4]} 12. Ba2 {[%clk 0:02:48]} 12... Qe7 {[%clk
0:02:06.6]} 13. c3 {[%clk 0:02:45.8]} 13... Nb5 {[%clk 0:01:43.6]} 14. Be3
{[%clk 0:02:26.3]} 14... d4 {[%clk 0:01:37.7]} 15. cxd4 {[%clk 0:02:22.5]} 15...
Nxd4 {[%clk 0:01:34.1]} 16. Nxd4 {[%clk 0:02:22.4]} 16... exd4 {[%clk
0:01:31.1]} 17. Bd2 {[%clk 0:02:19.3]} 17... c5 {[%clk 0:01:19.4]} 18. Rc1
{[%clk 0:02:13.3]} 18... Bd7 {[%clk 0:01:13.7]} 19. f4 {[%clk 0:02:07.1]} 19...
Rac8 {[%clk 0:00:23.6]} 20. e5 {[%clk 0:02:06.9]} 20... Ne8 {[%clk 0:00:23.5]}
21. Ne4 {[%clk 0:02:07.2]} 21... b6 {[%clk 0:00:18.5]} 22. Qh5 {[%clk
0:01:50.6]} 22... Bc6 {[%clk 0:00:10.7]} 23. Rfe1 {[%clk 0:01:46.3]} 23... Bxe4
{[%clk 0:00:10.6]} 24. Rxe4 {[%clk 0:01:43.9]} 24... Nc7 {[%clk 0:00:09.2]} 25.
bxc5 {[%clk 0:01:42.3]} 25... bxc5 {[%clk 0:00:09.5]} 26. f5 {[%clk 0:01:43.6]}
26... Qd7 {[%clk 0:00:07.2]} 27. Rh4 {[%clk 0:01:41.8]} 27... h6 {[%clk
0:00:08.1]} 28. Bxh6 {[%clk 0:01:34]} 28... Nd5 {[%clk 0:00:03.3]} 29. Bxg7
{[%clk 0:01:30.8]} 1-0

[Event "*** Titled Tuesday 3|2 Blitz (Early)"]
[Site "Chess.com"]
[Date "2016.12.06"]
[Round "1"]
[White "Er_is_geen_hoop_meer"]
[Black "vovkcoach"]
[Result "1/2-1/2"]
[WhiteElo "2273"]
[BlackElo "2555"]
[TimeControl "180+2"]
[EndTime "11:07:02 PST"]
[Termination "Game drawn by repetition"]

1. e4 {[%clk 0:02:51.8]} 1... c5 {[%clk 0:02:58.6]} 2. Nf3 {[%clk 0:02:52.2]}
2... d6 {[%clk 0:02:59.9]} 3. d4 {[%clk 0:02:52.6]} 3... cxd4 {[%clk 0:03:01.8]}
4. Nxd4 {[%clk 0:02:54.3]} 4... Nf6 {[%clk 0:03:02.4]} 5. f3 {[%clk 0:02:55.6]}
5... e5 {[%clk 0:02:57.2]} 6. Nb3 {[%clk 0:02:56.1]} 6... Nc6 {[%clk 0:02:54.2]}
7. c4 {[%clk 0:02:56.4]} 7... Be7 {[%clk 0:02:56.1]} 8. Be3 {[%clk 0:02:56.8]}
8... a5 {[%clk 0:02:55.4]} 9. Nc3 {[%clk 0:02:57.3]} 9... a4 {[%clk 0:02:55.8]}
10. Nd2 {[%clk 0:02:57.1]} 10... Qa5 {[%clk 0:02:55]} 11. Be2 {[%clk 0:02:57.2]}
11... O-O {[%clk 0:02:54.7]} 12. O-O {[%clk 0:02:58.2]} 12... Bd8 {[%clk
0:02:52.4]} 13. c5 {[%clk 0:02:54.3]} 13... Be6 {[%clk 0:02:42.1]} 14. cxd6
{[%clk 0:02:52.8]} 14... Bb6 {[%clk 0:02:43]} 15. Bf2 {[%clk 0:02:49.3]} 15...
Rfd8 {[%clk 0:02:40.4]} 16. Nc4 {[%clk 0:02:49.4]} 16... Bxc4 {[%clk 0:02:39.7]}
17. Bxc4 {[%clk 0:02:51.3]} 17... Bxf2+ {[%clk 0:02:39.2]} 18. Rxf2 {[%clk
0:02:53.2]} 18... Qc5 {[%clk 0:02:38.6]} 19. Bd5 {[%clk 0:02:54.3]} 19... a3
{[%clk 0:02:21.4]} 20. Qb3 {[%clk 0:02:50]} 20... Nd4 {[%clk 0:02:21.5]} 21.
Qxb7 {[%clk 0:02:44.3]} 21... Rab8 {[%clk 0:02:05.5]} 22. Qc7 {[%clk 0:02:42.1]}
22... axb2 {[%clk 0:02:02.1]} 23. Rb1 {[%clk 0:02:40.7]} 23... Qa3 {[%clk
0:01:18.1]} 24. Rfxb2 {[%clk 0:02:30.4]} 24... Rbc8 {[%clk 0:01:17.5]} 25. Qxf7+
{[%clk 0:02:29.9]} 25... Kh8 {[%clk 0:01:17.8]} 26. Rb7 {[%clk 0:02:31]} 26...
Nh5 {[%clk 0:01:10.5]} 27. d7 {[%clk 0:02:07.8]} 27... Qxc3 {[%clk 0:00:38.9]}
28. dxc8=Q {[%clk 0:01:52.9]} 28... Qe3+ {[%clk 0:00:38.4]} 29. Kh1 {[%clk
0:01:52]} 29... Rxc8 {[%clk 0:00:36.2]} 30. Rb8 {[%clk 0:01:36.4]} 30... Ng3+
{[%clk 0:00:28.2]} 31. hxg3 {[%clk 0:01:36.5]} 31... Qh6+ {[%clk 0:00:29.6]} 32.
Kg1 {[%clk 0:01:37.8]} 32... Qe3+ {[%clk 0:00:27.7]} 33. Kh2 {[%clk 0:01:38.4]}
33... Qh6+ {[%clk 0:00:28.2]} 34. Kg1 {[%clk 0:01:23.2]} 34... Qe3+ {[%clk
0:00:27.3]} 35. Kh2 {[%clk 0:01:22.8]} 35... Qh6+ {[%clk 0:00:27.5]} 36. Kg1
{[%clk 0:01:23.6]} 36... Qe3+ {[%clk 0:00:28.3]} 37. Kh2 {[%clk 0:01:24.6]}
1/2-1/2

[Event "*** Titled Tuesday 3|2 Blitz (Early)"]
[Site "Chess.com"]
[Date "2016.12.06"]
[Round "1"]
[White "stefanodinn"]
[Black "GrigorGrigorov"]
[Result "1-0"]
[WhiteElo "2187"]
[BlackElo "2447"]
[TimeControl "180+2"]
[EndTime "11:07:08 PST"]
[Termination "stefanodinn won by resignation"]

1. e4 {[%clk 0:02:57.8]} 1... g6 {[%clk 0:02:59.8]} 2. d4 {[%clk 0:02:58.2]}
2... Bg7 {[%clk 0:03:00.4]} 3. Nf3 {[%clk 0:02:58]} 3... d6 {[%clk 0:03:00.5]}
4. Bc4 {[%clk 0:02:50.9]} 4... Nf6 {[%clk 0:03:01.1]} 5. Qe2 {[%clk 0:02:51.7]}
5... O-O {[%clk 0:03:01.1]} 6. O-O {[%clk 0:02:52.5]} 6... c6 {[%clk 0:03:01.6]}
7. e5 {[%clk 0:02:37.6]} 7... Ne8 {[%clk 0:03:01.8]} 8. Bf4 {[%clk 0:02:32.3]}
8... Bg4 {[%clk 0:03:01.5]} 9. Nbd2 {[%clk 0:02:30.2]} 9... d5 {[%clk
0:02:50.4]} 10. Bd3 {[%clk 0:02:24.6]} 10... e6 {[%clk 0:02:47.4]} 11. h3 {[%clk
0:02:21]} 11... Bxf3 {[%clk 0:02:47.7]} 12. Nxf3 {[%clk 0:02:21.1]} 12... Qb6
{[%clk 0:02:45.4]} 13. c3 {[%clk 0:02:21.5]} 13... c5 {[%clk 0:02:46.1]} 14. Be3
{[%clk 0:01:55.7]} 14... cxd4 {[%clk 0:02:43]} 15. cxd4 {[%clk 0:01:55.2]} 15...
Nc6 {[%clk 0:02:43.3]} 16. Rac1 {[%clk 0:01:49.5]} 16... Nc7 {[%clk 0:02:38.9]}
17. a3 {[%clk 0:01:28]} 17... a6 {[%clk 0:02:39.2]} 18. Rc5 {[%clk 0:01:27.5]}
18... Rfe8 {[%clk 0:02:31.1]} 19. Rfc1 {[%clk 0:01:21.9]} 19... Bf8 {[%clk
0:02:31.6]} 20. R5c2 {[%clk 0:01:11.4]} 20... Nb5 {[%clk 0:02:31.4]} 21. h4
{[%clk 0:00:17.4]} 21... Qa5 {[%clk 0:02:05.9]} 22. h5 {[%clk 0:00:15.3]} 22...
Qa4 {[%clk 0:02:07.1]} 23. g3 {[%clk 0:00:06.9]} 23... Nbxd4 {[%clk 0:02:05.6]}
24. Nxd4 {[%clk 0:00:07.7]} 24... Nxd4 {[%clk 0:02:06.5]} 25. Qg4 {[%clk
0:00:07.8]} 25... f5 {[%clk 0:01:35.8]} 26. exf6 {[%clk 0:00:05]} 26... e5
{[%clk 0:01:36.8]} 27. hxg6 {[%clk 0:00:03.6]} 27... h5 {[%clk 0:01:33.8]} 28.
f7+ {[%clk 0:00:03.9]} 28... Kg7 {[%clk 0:01:33.8]} 29. fxe8=N+ {[%clk
0:00:03.4]} 29... Rxe8 {[%clk 0:01:33.3]} 30. Qxh5 {[%clk 0:00:04.6]} 30... Kf6
{[%clk 0:01:28.4]} 31. Qg5+ {[%clk 0:00:05]} 31... Ke6 {[%clk 0:01:29.5]} 32.
Bxd4 {[%clk 0:00:04.5]} 32... Qxd4 {[%clk 0:01:29.5]} 33. Bf5+ {[%clk
0:00:05.9]} 33... Kd6 {[%clk 0:01:30.3]} 34. Qf6+ {[%clk 0:00:07.1]} 1-0

[Event "*** Titled Tuesday 3|2 Blitz (Early)"]
[Site "Chess.com"]
[Date "2016.12.06"]
[Round "1"]
[White "ZivkovicN"]
[Black "Wolverine_master"]
[Result "1-0"]
[WhiteElo "2427"]
[BlackElo "2033"]
[TimeControl "180+2"]
[EndTime "11:07:12 PST"]
[Termination "ZivkovicN won by resignation"]

1. e4 {[%clk 0:03:01.4]} 1... d5 {[%clk 0:02:22.3]} 2. Nc3 {[%clk 0:03:01.2]}
2... dxe4 {[%clk 0:02:21.9]} 3. Nxe4 {[%clk 0:03:03.1]} 3... e5 {[%clk
0:02:23.4]} 4. Bb5+ {[%clk 0:02:59.2]} 4... Bd7 {[%clk 0:02:23.5]} 5. Qe2 {[%clk
0:02:59.5]} 5... Nf6 {[%clk 0:02:21.5]} 6. Bxd7+ {[%clk 0:02:49.4]} 6... Nbxd7
{[%clk 0:02:20.5]} 7. Nf3 {[%clk 0:02:48.9]} 7... Nxe4 {[%clk 0:02:20]} 8. Qxe4
{[%clk 0:02:50.8]} 8... Bd6 {[%clk 0:02:20.3]} 9. O-O {[%clk 0:02:37]} 9... O-O
{[%clk 0:02:15.9]} 10. Qxb7 {[%clk 0:02:34.3]} 10... Nc5 {[%clk 0:02:14]} 11.
Qb5 {[%clk 0:02:14.4]} 11... e4 {[%clk 0:02:14.4]} 12. Ne1 {[%clk 0:02:01.1]}
12... Qh4 {[%clk 0:02:04.8]} 13. g3 {[%clk 0:01:56.7]} 13... Qh3 {[%clk
0:02:05.6]} 14. d3 {[%clk 0:01:56.7]} 14... Rfe8 {[%clk 0:02:03.8]} 15. d4
{[%clk 0:01:30]} 15... Ne6 {[%clk 0:01:23.5]} 16. Be3 {[%clk 0:01:21.8]} 16...
Reb8 {[%clk 0:01:20.8]} 17. Qc6 {[%clk 0:01:21]} 17... f5 {[%clk 0:00:27.9]} 18.
Qd5 {[%clk 0:01:10.1]} 18... f4 {[%clk 0:00:28.4]} 19. gxf4 {[%clk 0:00:54.3]}
19... Rf8 {[%clk 0:00:23.9]} 20. Ng2 {[%clk 0:00:38.6]} 20... Rf6 {[%clk
0:00:20.8]} 21. Qxa8+ {[%clk 0:00:29.6]} 21... Bf8 {[%clk 0:00:20.7]} 22. f5
{[%clk 0:00:27.5]} 22... Rh6 {[%clk 0:00:21.2]} 23. Bxh6 {[%clk 0:00:27.7]}
23... gxh6 {[%clk 0:00:21]} 24. fxe6 {[%clk 0:00:26.6]} 1-0

[Event "*** Titled Tuesday 3|2 Blitz (Early)"]
[Site "Chess.com"]
[Date "2016.12.06"]
[Round "1"]
[White "Rumpel-VK"]
[Black "Morshynska"]
[Result "1-0"]
[WhiteElo "2460"]
[BlackElo "2142"]
[TimeControl "180+2"]
[EndTime "11:07:39 PST"]
[Termination "Rumpel-VK won by resignation"]

1. d4 {[%clk 0:02:51.9]} 1... Nf6 {[%clk 0:03:00.5]} 2. c4 {[%clk 0:02:52.1]}
2... e6 {[%clk 0:03:01.3]} 3. Nf3 {[%clk 0:02:52.3]} 3... b6 {[%clk 0:03:02.1]}
4. g3 {[%clk 0:02:52.6]} 4... Bb7 {[%clk 0:03:03.3]} 5. Bg2 {[%clk 0:02:53.1]}
5... Be7 {[%clk 0:03:04.7]} 6. O-O {[%clk 0:02:53.5]} 6... O-O {[%clk
0:03:05.9]} 7. Nc3 {[%clk 0:02:54.3]} 7... Ne4 {[%clk 0:03:07.1]} 8. Qc2 {[%clk
0:02:54.9]} 8... Nxc3 {[%clk 0:03:07.7]} 9. Qxc3 {[%clk 0:02:55.8]} 9... f5
{[%clk 0:03:08.9]} 10. Bf4 {[%clk 0:02:49.6]} 10... Bf6 {[%clk 0:03:08.3]} 11.
Rad1 {[%clk 0:02:48.1]} 11... d6 {[%clk 0:03:05]} 12. Ne5 {[%clk 0:02:31]} 12...
Bxg2 {[%clk 0:02:59.2]} 13. Kxg2 {[%clk 0:02:31.8]} 13... Qc8 {[%clk 0:02:16]}
14. Qf3 {[%clk 0:02:30.2]} 14... c6 {[%clk 0:02:13.8]} 15. Nd3 {[%clk
0:02:20.1]} 15... Rd8 {[%clk 0:01:42.6]} 16. Qe3 {[%clk 0:02:12.7]} 16... Na6
{[%clk 0:01:37.7]} 17. h4 {[%clk 0:02:08]} 17... Nc7 {[%clk 0:01:36.4]} 18. Bg5
{[%clk 0:02:05.1]} 18... Ne8 {[%clk 0:01:36.9]} 19. Nf4 {[%clk 0:01:59.6]} 19...
Kf7 {[%clk 0:01:36]} 20. d5 {[%clk 0:01:56.6]} 20... e5 {[%clk 0:01:23]} 21. Ne6
{[%clk 0:01:56.9]} 21... Rd7 {[%clk 0:01:23.7]} 22. Qf3 {[%clk 0:01:53.1]} 22...
cxd5 {[%clk 0:01:20.7]} 23. cxd5 {[%clk 0:01:41]} 23... g6 {[%clk 0:01:12.9]}
24. Rc1 {[%clk 0:01:36.3]} 24... Qb7 {[%clk 0:01:09.2]} 25. Rc6 {[%clk 0:01:36]}
25... Kg8 {[%clk 0:00:53.3]} 26. Rfc1 {[%clk 0:01:31.8]} 26... e4 {[%clk
0:00:45]} 27. Qb3 {[%clk 0:01:24.3]} 27... Be5 {[%clk 0:00:36.5]} 28. f4 {[%clk
0:01:17.1]} 28... exf3+ {[%clk 0:00:36.2]} 29. exf3 {[%clk 0:01:17.7]} 29... Qa6
{[%clk 0:00:24.4]} 30. R1c2 {[%clk 0:01:04.7]} 30... Ng7 {[%clk 0:00:20.6]} 31.
f4 {[%clk 0:01:00.6]} 31... Nxe6 {[%clk 0:00:13.9]} 32. dxe6 {[%clk 0:01:00.6]}
1-0

[Event "*** Titled Tuesday 3|2 Blitz (Early)"]
[Site "Chess.com"]
[Date "2016.12.06"]
[Round "1"]
[White "AlexanderL"]
[Black "Wilsonpalencia"]
[Result "0-1"]
[WhiteElo "2563"]
[BlackElo "2338"]
[TimeControl "180+2"]
[EndTime "11:07:54 PST"]
[Termination "Wilsonpalencia won by resignation"]

1. d4 {[%clk 0:02:58.3]} 1... d5 {[%clk 0:03:00.3]} 2. c4 {[%clk 0:02:58.8]}
2... c6 {[%clk 0:03:01.3]} 3. cxd5 {[%clk 0:02:59.7]} 3... cxd5 {[%clk
0:03:02.2]} 4. Bf4 {[%clk 0:03:00.9]} 4... Nc6 {[%clk 0:03:01.5]} 5. e3 {[%clk
0:03:02.2]} 5... Nf6 {[%clk 0:02:58.7]} 6. Nc3 {[%clk 0:03:03.3]} 6... Bf5
{[%clk 0:02:56.6]} 7. Qb3 {[%clk 0:03:04.3]} 7... Na5 {[%clk 0:02:55.4]} 8. Qa4+
{[%clk 0:03:01.5]} 8... Bd7 {[%clk 0:02:55]} 9. Qc2 {[%clk 0:03:02.4]} 9... e6
{[%clk 0:02:51.9]} 10. Nf3 {[%clk 0:02:52.8]} 10... Be7 {[%clk 0:02:50.4]} 11.
h3 {[%clk 0:02:44.2]} 11... O-O {[%clk 0:02:46.4]} 12. Bd3 {[%clk 0:02:44.8]}
12... Nc6 {[%clk 0:02:43.7]} 13. a3 {[%clk 0:02:45.4]} 13... Rc8 {[%clk
0:02:42.8]} 14. O-O {[%clk 0:02:46.3]} 14... a6 {[%clk 0:02:41.7]} 15. Rfc1
{[%clk 0:02:46.4]} 15... Na5 {[%clk 0:02:36]} 16. Qd1 {[%clk 0:02:38.1]} 16...
Nc4 {[%clk 0:02:34.5]} 17. Qe2 {[%clk 0:02:36.2]} 17... b5 {[%clk 0:02:33.3]}
18. Ne5 {[%clk 0:02:33.3]} 18... h6 {[%clk 0:02:25.7]} 19. a4 {[%clk 0:02:06.5]}
19... b4 {[%clk 0:02:05.3]} 20. Nd1 {[%clk 0:02:06.7]} 20... Nxe5 {[%clk
0:02:02.1]} 21. dxe5 {[%clk 0:02:07.8]} 21... Ne4 {[%clk 0:02:00.8]} 22. Rxc8
{[%clk 0:01:58.5]} 22... Bxc8 {[%clk 0:01:57.6]} 23. Bxa6 {[%clk 0:01:59.5]}
23... Bxa6 {[%clk 0:01:58]} 24. Qxa6 {[%clk 0:02:00.3]} 24... Nc5 {[%clk
0:01:58.1]} 25. Qb5 {[%clk 0:01:50.6]} 25... Nb3 {[%clk 0:01:55.7]} 26. Rb1
{[%clk 0:01:44.2]} 26... Qc7 {[%clk 0:01:52.7]} 27. Qd3 {[%clk 0:01:29.8]} 27...
Qc4 {[%clk 0:01:53.3]} 28. Qxc4 {[%clk 0:01:23.9]} 28... dxc4 {[%clk 0:01:54.5]}
29. e4 {[%clk 0:01:25.2]} 29... Ra8 {[%clk 0:01:54.7]} 30. Ne3 {[%clk
0:01:26.1]} 30... Nd4 {[%clk 0:01:52.2]} 31. Kf1 {[%clk 0:01:20.9]} 31... c3
{[%clk 0:01:48.8]} 32. bxc3 {[%clk 0:01:22.2]} 32... bxc3 {[%clk 0:01:49.6]} 33.
Rc1 {[%clk 0:00:38.9]} 33... g5 {[%clk 0:01:47.1]} 34. Bg3 {[%clk 0:00:38.2]}
34... Rxa4 {[%clk 0:01:45.3]} 35. f3 {[%clk 0:00:39.4]} 35... c2 {[%clk
0:01:42.5]} 36. Nxc2 {[%clk 0:00:28]} 36... Rc4 {[%clk 0:01:43]} 37. Nxd4 {[%clk
0:00:29.3]} 37... Rxc1+ {[%clk 0:01:43.8]} 38. Ke2 {[%clk 0:00:30.1]} 38... Rg1
{[%clk 0:01:42.4]} 39. Kf2 {[%clk 0:00:29]} 39... Rd1 {[%clk 0:01:43]} 40. Nc6
{[%clk 0:00:22]} 40... Bc5+ {[%clk 0:01:43.2]} 41. Ke2 {[%clk 0:00:23]} 41...
Rg1 {[%clk 0:01:41.7]} 42. Be1 {[%clk 0:00:23.4]} 42... Rxg2+ {[%clk 0:01:38.9]}
0-1